fUSD/lending_fUSD_20260424
["ID","MTS","AMOUNT","RATE_DAILY","PERIOD"]
[421090725,1777012232734,-150.0,8.883e-05,2]
[421090726,1777012232744,-400.0,8.9e-05,3]
[421090727,1777012232765,-200.0,8.9e-05,2]
[421090728,1777012232776,-150.0,8.906e-05,2]
[421090729,1777012232787,-150.0,8.929e-05,2]
[421090730,1777012232797,-150.0,8.952e-05,2]
[421090731,1777012232807,-150.0,8.974e-05,2]
[421090733,1777012232818,-150.0,8.997e-05,2]
[421090734,1777012232828,-900.0,9e-05,3]
[421090736,1777012232838,-150.0,9.02e-05,2]
[421090737,1777012232849,-150.0,9.042e-05,2]
[421090738,1777012232859,-150.0,9.065e-05,2]
[421090739,1777012232869,-150.0,9.088e-05,2]
[421090740,1777012232880,-150.0,9.111e-05,2]
[421090741,1777012232890,-150.0,9.133e-05,2]
[421090742,1777012232900,-150.0,9.156e-05,2]
[421090743,1777012232911,-150.0,9.179e-05,2]
[421090744,1777012232921,-150.0,9.201e-05,2]
[421090745,1777012232932,-600.0,9.209e-05,54]
[421090746,1777012232942,-165.76535848,9.209e-05,2]
[421090747,1777012232952,-8242.1318,9.216e-05,2]
[421090748,1777012232962,-18938.573,9.216e-05,2]
[421090749,1777012232973,-2500.0,9.216e-05,2]
[421090750,1777012232983,-383.6402419,9.222e-05,2]
[421090751,1777012232992,-150.0,9.224e-05,2]
[421090752,1777012233002,-150.0,9.247e-05,2]
[421090753,1777012233011,-150.0,9.27e-05,2]
[421090754,1777012233021,-150.0,9.292e-05,2]
[421090755,1777012233031,-209.89393966,9.315e-05,2]
[421090756,1777012233040,-613.57177575,9.315e-05,2]
[421090757,1777012233051,-191.58906154,9.315e-05,2]
[421090758,1777012233060,-174.53112116,9.315e-05,2]
[421090759,1777012233070,-500.0,9.315e-05,2]
[421090760,1777012233079,-500.0,9.315e-05,2]
[421090761,1777012233088,-500.0,9.315e-05,2]
[421090762,1777012233099,-500.0,9.315e-05,2]
[421090763,1777012233109,-500.0,9.315e-05,2]
[421090764,1777012233118,-500.0,9.315e-05,2]
[421090765,1777012233129,-221.49439229,9.315e-05,2]
[421090766,1777012233138,-500.0,9.315e-05,2]
[421090767,1777012233148,-500.0,9.315e-05,2]
[421090768,1777012233158,-500.0,9.315e-05,2]
[421090769,1777012233168,-500.0,9.315e-05,2]
[421090770,1777012233178,-500.0,9.315e-05,2]
[421090771,1777012233188,-500.0,9.315e-05,2]
[421090772,1777012233197,-500.0,9.315e-05,2]
[421090773,1777012233206,-500.0,9.315e-05,2]
[421090774,1777012233216,-500.0,9.315e-05,2]
[421090775,1777012233226,-500.0,9.315e-05,2]
[421090776,1777012233236,-500.0,9.315e-05,2]
[421090777,1777012233246,-500.0,9.315e-05,2]
[421090778,1777012233255,-500.0,9.315e-05,2]
[421090779,1777012233265,-500.0,9.315e-05,2]
[421090780,1777012233275,-500.0,9.315e-05,2]
[421090781,1777012233285,-500.0,9.315e-05,2]
[421090782,1777012233295,-500.0,9.315e-05,2]
[421090783,1777012233305,-500.0,9.315e-05,2]
[421090784,1777012233315,-500.0,9.315e-05,2]
[421090785,1777012233324,-500.0,9.315e-05,2]
[421090786,1777012233334,-500.0,9.315e-05,2]
[421090787,1777012233344,-500.0,9.315e-05,2]
[421090788,1777012233354,-500.0,9.315e-05,2]
[421090789,1777012233363,-250.0,9.315e-05,2]
[421090790,1777012233373,-500.0,9.315e-05,2]
[421090791,1777012233383,-191.04884589,9.315e-05,2]
[421090792,1777012233393,-500.0,9.315e-05,2]
[421090793,1777012233402,-250.0,9.315e-05,2]
[421090794,1777012233412,-220866.10589505,9.316e-05,2]
[421090795,1777012233427,-84469.28776751,9.316e-05,2]
[421090796,1777012233439,-118783.5829733,9.316e-05,2]
[421090797,1777012233451,-1254.41808677,9.316e-05,2]
[421090798,1777012233463,-267.37735194,9.316e-05,2]
[421090799,1777012233479,-257.8752,9.316e-05,2]
[421090800,1777012233491,-2424.07895351,9.316e-05,2]
[421090801,1777012233503,-4675.92415367,9.316e-05,2]
[421090802,1777012233515,-264.00221638,9.316e-05,2]
[421090803,1777012233527,-2551.11025438,9.316e-05,2]
[421090804,1777012233539,-2993.88054873,9.316e-05,2]
[421090805,1777012233557,-540.40776292,9.316e-05,2]
[421090806,1777012233568,-323.3292545,9.316e-05,2]
[421090807,1777012233589,-326.03172292,9.316e-05,2]
[421090808,1777012238277,-981.27320347,9.316e-05,2]
[421090814,1777012238333,-2342.56190093,9.316e-05,2]
[421090815,1777012238343,-53098.14634089,9.316e-05,2]
[421090816,1777012238355,-14860.68728384,9.316e-05,2]
[421090817,1777012238445,-21416.96175037,9.316e-05,2]
[421090818,1777012238502,-1222.12293849,9.316e-05,2]
[421090862,1777012240932,-11470.26924953,9.316e-05,2]
[421090864,1777012243224,-4919.50164026,9.316e-05,2]
[421090865,1777012243287,-658.88696035,9.316e-05,2]
[421090866,1777012243335,-20279.50605604,9.316e-05,2]
[421090867,1777012243391,-443.4506406,9.316e-05,2]
[421090879,1777012246665,-93535.52815398,9.316e-05,2]
[421090880,1777012246678,-35043.10208652,9.316e-05,2]
[421090881,1777012246770,-37817.5474248,9.316e-05,2]
[421090884,1777012562161,164.52,0.00012999,60]
[421090885,1777012927668,2011.0,0.000165,120]
[421090886,1777012978337,952.0,0.000165,120]
[421090899,1777013437654,-150.00000001,8.112e-05,2]
[421090900,1777013437664,-501.78438159,8.231e-05,2]
[421090901,1777013437674,-600.0,8.349e-05,54]
[421090902,1777013437684,-211.72,8.586e-05,2]
[421090903,1777013437694,-600.0,8.634e-05,54]
[421090904,1777013437704,-600.0,8.634e-05,54]
[421090905,1777013437714,-400.0,8.8e-05,3]
[421090906,1777013437723,-228.091,8.836e-05,2]
[421090907,1777013437733,-580.70782736,8.836e-05,2]
[421090908,1777013437744,-388.49850065,8.836e-05,2]
[421090909,1777013437921,-2146.01867199,8.836e-05,2]
[421090910,1777013437930,-155.26190381,8.836e-05,21]
[421090911,1777013437940,-200.45389958,8.836e-05,2]
[421090912,1777013437950,-232.89285572,8.87e-05,21]
[421090913,1777013437964,-800.0,8.9e-05,3]
[421090914,1777013437973,-2500.0,8.916e-05,2]
[421090915,1777013437983,-36441.4134,8.916e-05,2]
[421090916,1777013437993,-1333.34,8.916e-05,2]
[421090917,1777013438002,-600.0,8.924e-05,54]
[421090918,1777013438012,-600.0,8.924e-05,54]
[421090919,1777013438022,-500.0,8.924e-05,2]
[421090920,1777013438032,-200.45389956,8.926e-05,2]
[421090921,1777013438042,-411.0,8.957e-05,2]
[421090922,1777013438052,-423.46,8.972e-05,2]
[421090923,1777013438062,-1200.0,9e-05,3]
[421090924,1777013438071,-151.0,9.013e-05,2]
[421090925,1777013438081,-150.0,9.014e-05,2]
[421090926,1777013438092,-1078.42509831,9.015e-05,3]
[421090927,1777013438101,-500.0,9.015e-05,2]
[421090928,1777013438111,-333.73419212,9.015e-05,2]
[421090929,1777013438121,-500.0,9.015e-05,2]
[421090930,1777013438130,-500.0,9.015e-05,2]
[421090931,1777013438140,-197.14943923,9.015e-05,2]
[421090932,1777013438150,-500.0,9.015e-05,2]
[421090933,1777013438160,-429.50024303,9.015e-05,2]
[421090934,1777013438169,-500.0,9.015e-05,2]
[421090935,1777013438179,-500.0,9.015e-05,2]
[421090936,1777013438189,-500.0,9.015e-05,2]
[421090937,1777013438198,-500.0,9.015e-05,2]
[421090938,1777013438207,-500.0,9.015e-05,2]
[421090939,1777013438216,-500.0,9.015e-05,2]
[421090940,1777013438226,-356.60463847,9.015e-05,2]
[421090941,1777013438239,-143.39536153,9.015e-05,2]
[421090942,1777013438248,-500.0,9.015e-05,2]
[421090943,1777013438258,-500.0,9.015e-05,2]
[421090944,1777013438267,-500.0,9.015e-05,2]
[421090945,1777013438276,-500.0,9.015e-05,2]
[421090946,1777013438286,-500.0,9.015e-05,2]
[421090947,1777013438295,-500.0,9.015e-05,2]
[421090948,1777013438306,-500.0,9.015e-05,2]
[421090949,1777013438316,-500.0,9.015e-05,2]
[421090950,1777013438325,-500.0,9.015e-05,2]
[421090951,1777013438334,-500.0,9.015e-05,2]
[421090952,1777013438344,-500.0,9.015e-05,2]
[421090953,1777013438354,-500.0,9.015e-05,2]
[421090954,1777013438365,-500.0,9.015e-05,2]
[421090955,1777013438374,-500.0,9.015e-05,2]
[421090956,1777013438387,-500.0,9.015e-05,2]
[421090957,1777013438396,-500.0,9.015e-05,2]
[421090958,1777013438405,-500.0,9.015e-05,2]
[421090959,1777013438415,-200.45389956,9.016e-05,2]
[421090960,1777013438426,-250.0,9.016e-05,2]
[421090961,1777013438435,-5766.83802275,9.016e-05,2]
[421090966,1777013440227,-301.717,9.016e-05,2]
[421090970,1777013445624,-7142.09122536,9.016e-05,2]
[421090971,1777013445669,-28386.33943588,9.016e-05,2]
[421090972,1777013445778,-5740.90391765,9.016e-05,2]
[421090973,1777013445834,-4629.9288,9.016e-05,2]
[421090996,1777013796945,-2613.818,8.836e-05,2]
[421090997,1777013796970,-226.596,8.836e-05,2]
[421090998,1777013796993,-600.0,8.871e-05,54]
[421090999,1777013797016,-423.46,8.872e-05,2]
[421091000,1777013797039,-600.0,8.897e-05,54]
[421091001,1777013797065,-600.0,8.897e-05,54]
[421091002,1777013797088,-600.0,8.897e-05,54]
[421091003,1777013797111,-843.06580888,8.906e-05,2]
[421091004,1777013797133,-514.0,8.914e-05,2]
[421091005,1777013797156,-150.0,8.915e-05,2]
[421091006,1777013797179,-583.61393449,8.915e-05,2]
[421091007,1777013797210,-500.0,8.915e-05,2]
[421091008,1777013797238,-500.0,8.915e-05,2]
[421091009,1777013797265,-188.57215991,8.915e-05,2]
[421091010,1777013797288,-300.65017012,8.915e-05,2]
[421091011,1777013797313,-2266.2239266,8.916e-05,2]
[421091027,1777014238720,-151.0,8.7e-05,54]
[421091028,1777014239862,-151.0,8.7e-05,54]
[421091029,1777014240681,-151.0,8.7e-05,54]
[421091030,1777014241467,-147.0,8.7e-05,54]
[421091045,1777014631823,-280.63250004,8.013e-05,2]
[421091046,1777014631838,-19.36749996,8.013e-05,2]
[421091047,1777014631849,-250.0,8.013e-05,2]
[421091048,1777014631861,-76.24389308,8.013e-05,54]
[421091049,1777014631873,-523.75610692,8.013e-05,54]
[421091050,1777014631883,-150.0,8.014e-05,2]
[421091051,1777014631893,-150.0,8.014e-05,2]
[421091052,1777014631903,-150.0,8.014e-05,2]
[421091053,1777014631912,-150.0,8.014e-05,2]
[421091054,1777014631921,-71.24389308,8.014e-05,2]
[421091055,1777014631949,-78.75610693,8.014e-05,2]
[421091056,1777014631958,-259.74988373,8.014e-05,2]
[421091057,1777014631968,-22.5366574,8.014e-05,2]
[421091058,1777014631984,-127.4633426,8.014e-05,2]
[421091059,1777014631993,-150.0,8.014e-05,2]
[421091060,1777014632003,-85.76533182,8.014e-05,2]
[421091061,1777014632057,-64.23466818,8.014e-05,2]
[421091062,1777014632067,-600.0,8.221e-05,54]
[421091063,1777014632076,-600.0,8.221e-05,54]
[421091064,1777014632086,-150.0,8.236e-05,2]
[421091066,1777014632096,-150.0,8.384e-05,2]
[421091068,1777014632106,-150.0,8.459e-05,2]
[421091070,1777014632116,-150.0,8.459e-05,2]
[421091071,1777014632125,-150.0,8.641e-05,2]
[421091072,1777014632135,-150.0,8.641e-05,2]
[421091073,1777014632144,-229.51875399,8.641e-05,2]
[421091074,1777014632154,-163.23110827,8.641e-05,2]
[421091075,1777014632163,-150.0,8.682e-05,2]
[421091076,1777014632172,-1059.61948385,8.7e-05,2]
[421091086,1777014638261,-20488.98164293,8.7e-05,2]
[421091087,1777014638271,-150.0,8.715e-05,2]
[421091088,1777014638281,-31267.09926779,8.716e-05,2]
[421091089,1777014638293,-5174.31413221,8.716e-05,2]
[421091090,1777014638302,-974.94525903,8.722e-05,2]
[421091091,1777014638312,-420.0,8.814e-05,2]
[421091092,1777014638322,-600.0,8.814e-05,54]
[421091093,1777014638331,-250.0,8.814e-05,2]
[421091094,1777014638340,-500.0,8.814e-05,2]
[421091095,1777014638350,-250.0,8.814e-05,2]
[421091096,1777014638360,-600.0,8.815e-05,54]
[421091097,1777014638371,-233.56093196,8.815e-05,2]
[421091098,1777014638381,-339.30519199,8.815e-05,2]
[421091099,1777014638390,-500.0,8.815e-05,2]
[421091100,1777014638401,-158.65001178,8.815e-05,2]
[421091102,1777014638410,-500.0,8.815e-05,2]
[421091104,1777014638419,-500.0,8.815e-05,2]
[421091106,1777014638429,-500.0,8.815e-05,2]
[421091108,1777014638438,-500.0,8.815e-05,2]
[421091110,1777014638448,-500.0,8.815e-05,2]
[421091112,1777014638458,-500.0,8.815e-05,2]
[421091113,1777014638468,-500.0,8.815e-05,2]
[421091115,1777014638478,-500.0,8.815e-05,2]
[421091118,1777014638488,-500.0,8.815e-05,2]
[421091120,1777014638498,-359.91175687,8.815e-05,2]
[421091123,1777014638519,-140.08824313,8.815e-05,2]
[421091125,1777014638528,-500.0,8.815e-05,2]
[421091127,1777014638537,-500.0,8.815e-05,2]
[421091129,1777014638546,-500.0,8.815e-05,2]
[421091131,1777014638557,-500.0,8.815e-05,2]
[421091133,1777014638566,-500.0,8.815e-05,2]
[421091135,1777014638575,-38.3989713,8.815e-05,2]
[421091137,1777014638586,-359.4103643,8.815e-05,2]
[421091139,1777014638598,-102.1906644,8.815e-05,2]
[421091141,1777014638607,-177.05506949,8.815e-05,2]
[421091145,1777014638631,-432.33533711,8.815e-05,2]
[421091205,1777014640498,-18.04408871,8.815e-05,2]
[421091206,1777014640507,-455.88926962,8.815e-05,2]
[421091229,1777014646087,-44.11073038,8.815e-05,2]
[421091230,1777014646097,-500.0,8.815e-05,2]
[421091231,1777014646106,-1333.34,8.816e-05,2]
[421091232,1777014646116,-2500.0,8.816e-05,2]
[421091233,1777014646125,-543.47800158,8.816e-05,2]
[421091234,1777014646144,-9634.56640217,8.816e-05,2]
[421091241,1777015038000,-151.0,8.622e-05,54]
[421091242,1777015039038,-151.0,8.622e-05,54]
[421091243,1777015040385,-151.0,8.622e-05,54]
[421091244,1777015041323,-147.0,8.622e-05,54]
[421091245,1777015041346,-4.0,8.672e-05,54]
[421091246,1777015048268,-151.0,8.672e-05,54]
[421091247,1777015056862,-151.0,8.672e-05,54]
[421091248,1777015061348,-151.0,8.672e-05,54]
[421091249,1777015066468,-143.0,8.672e-05,54]
[421091251,1777015689648,600.0,7.927e-05,54]
[421091252,1777015745771,600.0,7.927e-05,54]
[421091253,1777015745889,600.0,7.964e-05,54]
[421091254,1777015745974,600.0,7.964e-05,54]
[421091259,1777015806943,600.0,7.921e-05,54]
[421091260,1777015807043,600.0,7.947e-05,54]
[421091264,1777015832178,-150.0,7.915e-05,2]
[421091265,1777015832188,-137.06431718,7.915e-05,2]
[421091266,1777015832200,-12.93568282,7.915e-05,2]
[421091267,1777015832209,-150.0,7.915e-05,2]
[421091268,1777015832219,-150.0,7.915e-05,2]
[421091269,1777015832228,-150.0,7.915e-05,2]
[421091270,1777015832238,-150.0,7.915e-05,2]
[421091271,1777015832249,-250.0,7.927e-05,2]
[421091272,1777015832259,-32.0,7.939e-05,2]
[421091273,1777015832288,-118.0,7.939e-05,2]
[421091274,1777015832298,-150.0,7.964e-05,2]
[421091275,1777015832307,-150.0,7.988e-05,2]
[421091276,1777015832316,-134.17405263,8.013e-05,2]
[421091277,1777015832327,-15.82594737,8.013e-05,2]
[421091278,1777015832336,-150.0,8.037e-05,2]
[421091279,1777015832346,-150.0,8.062e-05,2]
[421091280,1777015832356,-150.0,8.086e-05,2]
[421091281,1777015832367,-150.0,8.111e-05,2]
[421091282,1777015832376,-150.0,8.135e-05,2]
[421091283,1777015832385,-150.0,8.159e-05,2]
[421091284,1777015832395,-150.0,8.184e-05,2]
[421091285,1777015832404,-150.0,8.208e-05,2]
[421091286,1777015832413,-411.0,8.225e-05,2]
[421091287,1777015832422,-443.0,8.232e-05,2]
[421091288,1777015832431,-150.0,8.233e-05,2]
[421091289,1777015832440,-150.0,8.257e-05,2]
[421091290,1777015832449,-150.0,8.282e-05,2]
[421091291,1777015832459,-150.0,8.306e-05,2]
[421091293,1777015832468,-150.0,8.33e-05,2]
[421091295,1777015832477,-150.0,8.355e-05,2]
[421091298,1777015832489,-150.0,8.379e-05,2]
[421091299,1777015832498,-150.0,8.404e-05,2]
[421091301,1777015832508,-150.0,8.428e-05,2]
[421091303,1777015832517,-150.0,8.453e-05,2]
[421091305,1777015832526,-300.0,8.453e-05,2]
[421091307,1777015832535,-403.6,8.462e-05,2]
[421091308,1777015832544,-150.0,8.477e-05,2]
[421091309,1777015832553,-150.0,8.501e-05,2]
[421091310,1777015832562,-500.0,8.504e-05,2]
[421091311,1777015832571,-489.30519199,8.504e-05,2]
[421091312,1777015832581,-233.56093196,8.504e-05,2]
[421091313,1777015832590,-500.0,8.504e-05,2]
[421091314,1777015832599,-11.81287158,8.504e-05,2]
[421091315,1777015838354,-146.8371402,8.504e-05,2]
[421091316,1777015838364,-500.0,8.504e-05,2]
[421091317,1777015838374,-500.0,8.504e-05,2]
[421091318,1777015838384,-500.0,8.504e-05,2]
[421091319,1777015838393,-500.0,8.504e-05,2]
[421091320,1777015838403,-500.0,8.504e-05,2]
[421091321,1777015838413,-500.0,8.504e-05,2]
[421091322,1777015838423,-500.0,8.504e-05,2]
[421091323,1777015838432,-500.0,8.504e-05,2]
[421091324,1777015838442,-500.0,8.504e-05,2]
[421091325,1777015838462,-500.0,8.504e-05,2]
[421091326,1777015838472,-500.0,8.504e-05,2]
[421091327,1777015838482,-500.0,8.504e-05,2]
[421091328,1777015838493,-500.0,8.504e-05,2]
[421091329,1777015838503,-500.0,8.504e-05,2]
[421091330,1777015838513,-500.0,8.504e-05,2]
[421091331,1777015838523,-500.0,8.504e-05,2]
[421091332,1777015838533,-436.5599374,8.504e-05,2]
[421091333,1777015838543,-500.0,8.504e-05,2]
[421091334,1777015838552,-500.0,8.504e-05,2]
[421091335,1777015838562,-500.0,8.504e-05,2]
[421091336,1777015838571,-500.0,8.504e-05,2]
[421091337,1777015838581,-500.0,8.504e-05,2]
[421091338,1777015838591,-500.0,8.504e-05,2]
[421091339,1777015838600,-500.0,8.504e-05,2]
[421091340,1777015838610,-500.0,8.504e-05,2]
[421091341,1777015838620,-500.0,8.504e-05,2]
[421091342,1777015838629,-500.0,8.504e-05,2]
[421091343,1777015838639,-500.0,8.504e-05,2]
[421091344,1777015838649,-500.0,8.504e-05,2]
[421091345,1777015838658,-500.0,8.504e-05,2]
[421091346,1777015838668,-500.0,8.504e-05,2]
[421091347,1777015838678,-500.0,8.504e-05,2]
[421091348,1777015838688,-500.0,8.504e-05,2]
[421091349,1777015838699,-500.0,8.504e-05,2]
[421091350,1777015838708,-500.0,8.504e-05,2]
[421091351,1777015838717,-500.0,8.504e-05,2]
[421091352,1777015838727,-500.0,8.504e-05,2]
[421091353,1777015838736,-500.0,8.504e-05,2]
[421091354,1777015838746,-500.0,8.504e-05,2]
[421091356,1777015838756,-503.06636744,8.504e-05,2]
[421091358,1777015838765,-500.0,8.504e-05,2]
[421091360,1777015838775,-500.0,8.504e-05,2]
[421091362,1777015838785,-500.0,8.504e-05,2]
[421091364,1777015838794,-500.0,8.504e-05,2]
[421091365,1777015838805,-500.0,8.504e-05,2]
[421091367,1777015838816,-500.0,8.504e-05,2]
[421091368,1777015838826,-500.0,8.504e-05,2]
[421091369,1777015838836,-500.0,8.504e-05,2]
[421091370,1777015838852,-500.0,8.504e-05,2]
[421091371,1777015838862,-500.0,8.504e-05,2]
[421091373,1777015838872,-500.0,8.504e-05,2]
[421091374,1777015838882,-500.0,8.504e-05,2]
[421091375,1777015838893,-500.0,8.504e-05,2]
[421091376,1777015838903,-391.17663502,8.504e-05,2]
[421091377,1777015838914,-500.0,8.504e-05,2]
[421091378,1777015838924,-500.0,8.504e-05,2]
[421091379,1777015838934,-500.0,8.504e-05,2]
[421091380,1777015838943,-500.0,8.504e-05,2]
[421091381,1777015838953,-500.0,8.504e-05,2]
[421091382,1777015838963,-500.0,8.504e-05,2]
[421091383,1777015838973,-25463.06816176,8.505e-05,2]
[421091384,1777015838989,-14860.68728384,8.505e-05,2]
[421091385,1777015839037,-332.85149969,8.505e-05,2]
[421091386,1777015839062,-4672.37343719,8.505e-05,2]
[421091393,1777015840697,-56979.28040938,8.505e-05,2]
[421091394,1777015840756,-2075.70576896,8.505e-05,2]
[421091395,1777015840816,-358.9418466,8.505e-05,2]
[421091396,1777015840962,-1810.91461116,8.505e-05,2]
[421091397,1777015840973,-14563.74441144,8.505e-05,2]
[421091398,1777015840984,-32800.8,8.505e-05,2]
[421091399,1777015841002,-1407.52319047,8.505e-05,2]
[421091409,1777015843321,-11119.9731159,8.505e-05,2]
[421091410,1777015843487,-337.08428623,8.505e-05,2]
[421091411,1777015843600,-357017.00257738,8.505e-05,2]
[421091412,1777015843610,-150.0,8.526e-05,2]
[421091413,1777015843620,-150.0,8.55e-05,2]
[421091414,1777015843630,-150.0,8.575e-05,2]
[421091415,1777015843640,-500.0,8.583e-05,2]
[421091416,1777015843649,-610.63741072,8.583e-05,2]
[421091417,1777015843658,-381.77108298,8.583e-05,2]
[421091418,1777015843667,-500.0,8.583e-05,2]
[421091419,1777015843677,-503.34395917,8.583e-05,2]
[421091420,1777015843686,-246.95294751,8.583e-05,2]
[421091421,1777015843696,-500.0,8.583e-05,2]
[421091422,1777015843705,-500.0,8.583e-05,2]
[421091424,1777015843715,-500.0,8.583e-05,2]
[421091425,1777015843724,-500.0,8.583e-05,2]
[421091426,1777015843733,-500.0,8.583e-05,2]
[421091427,1777015843742,-150.0,8.599e-05,2]
[421091428,1777015843751,-250.0,8.603e-05,2]
[421091429,1777015843761,-162779.6274875,8.604e-05,2]
[421091436,1777015846820,-481.3395008,8.604e-05,2]
[421091437,1777015846839,-11659.51004661,8.604e-05,2]
[421091438,1777015846856,-732.23943309,8.604e-05,2]
[421091439,1777015846881,-1622.53665363,8.604e-05,2]
[421091441,1777015846907,-69579.47145796,8.604e-05,2]
[421091442,1777015846933,-1179.15927699,8.604e-05,2]
[421091445,1777016421286,-151.0,8.449e-05,54]
[421091446,1777016422288,-151.0,8.449e-05,54]
[421091447,1777016423060,-151.0,8.449e-05,54]
[421091448,1777016423903,-147.0,8.449e-05,54]
[421091453,1777017031463,-600.0,8.431e-05,54]
[421091454,1777017031473,-380.51884361,8.431e-05,3]
[421091455,1777017031483,-721.4816,8.466e-05,2]
[421091456,1777017031493,-136.97474641,8.466e-05,2]
[421091457,1777017031515,-114.02525359,8.466e-05,2]
[421091458,1777017031525,-1200.0,8.501e-05,2]
[421091459,1777017031535,-150.0,8.502e-05,2]
[421091460,1777017031545,-300.0,8.502e-05,2]
[421091461,1777017031555,-191.58906154,8.503e-05,2]
[421091462,1777017031564,-10434.13846656,8.503e-05,2]
[421091463,1777017031574,-2520.259,8.503e-05,2]
[421091464,1777017031584,-216.326,8.503e-05,2]
[421091465,1777017031594,-30477.6893106,8.537e-05,2]
[421091466,1777017031604,-21568.3078814,8.537e-05,2]
[421091467,1777017031614,-153.83540176,8.537e-05,2]
[421091468,1777017031624,-47594.2361414,8.537e-05,2]
[421091469,1777017031634,-299.99,8.537e-05,2]
[421091470,1777017031644,-1623.74,8.537e-05,2]
[421091471,1777017031653,-3338.39,8.537e-05,2]
[421091472,1777017031664,-151.0,8.537e-05,2]
[421091473,1777017031673,-3493.3217646,8.537e-05,2]
[421091474,1777017031684,-151.0,8.537e-05,2]
[421091475,1777017031698,-151.0,8.537e-05,2]
[421091476,1777017031712,-578.20924308,8.596e-05,2]
[421091477,1777017031722,-209.40437684,8.596e-05,2]
[421091478,1777017031732,-9552.16786547,8.596e-05,2]
[421091479,1777017031742,-151.0,8.596e-05,2]
[421091480,1777017031752,-235.75327194,8.596e-05,2]
[421091481,1777017031762,-244.476143,8.596e-05,2]
[421091482,1777017031772,-253.52176029,8.596e-05,2]
[421091483,1777017031781,-262.90206542,8.596e-05,2]
[421091484,1777017031791,-186.82581391,8.596e-05,2]
[421091485,1777017031801,-152.0,8.596e-05,2]
[421091486,1777017031811,-209.40437684,8.596e-05,2]
[421091487,1777017031820,-152.0,8.596e-05,2]
[421091488,1777017031830,-227.10538288,8.596e-05,2]
[421091489,1777017031840,-174.61919141,8.596e-05,2]
[421091490,1777017031849,-693.3919763,8.596e-05,2]
[421091491,1777017031859,-721.12765535,8.598e-05,2]
[421091492,1777017031869,-1428.38747117,8.598e-05,2]
[421091493,1777017031879,-200.0,8.598e-05,2]
[421091494,1777017031889,-743.50770149,8.598e-05,2]
[421091495,1777017031898,-155.99113558,8.598e-05,2]
[421091496,1777017031909,-1000.0,8.598e-05,2]
[421091497,1777017031918,-1000.0,8.598e-05,2]
[421091498,1777017031928,-1000.0,8.598e-05,2]
[421091499,1777017031941,-1000.0,8.598e-05,2]
[421091500,1777017031951,-1000.0,8.598e-05,2]
[421091501,1777017031961,-1000.0,8.598e-05,2]
[421091503,1777017031971,-1000.0,8.598e-05,2]
[421091504,1777017031981,-1000.0,8.598e-05,2]
[421091505,1777017031991,-1000.0,8.598e-05,2]
[421091506,1777017032000,-1012.28516401,8.598e-05,2]
[421091508,1777017032010,-279.9045709,8.598e-05,2]
[421091509,1777017032019,-209.40437684,8.598e-05,2]
[421091510,1777017032029,-300.0,8.6e-05,3]
[421091511,1777017032039,-200.0,8.6e-05,2]
[421091512,1777017032048,-151.0,8.601e-05,2]
[421091513,1777017032058,-3199.98,8.601e-05,2]
[421091514,1777017032068,-4502.87,8.601e-05,2]
[421091515,1777017032077,-9999.99,8.601e-05,2]
[421091516,1777017032087,-150.99,8.601e-05,2]
[421091517,1777017032097,-9999.99,8.601e-05,2]
[421091518,1777017032106,-9999.99,8.601e-05,2]
[421091519,1777017032117,-151.0,8.601e-05,2]
[421091520,1777017032127,-1000.0,8.603e-05,2]
[421091521,1777017032136,-1006.04721534,8.603e-05,2]
[421091522,1777017032146,-182.0,8.604e-05,3]
[421091523,1777017032156,-500.0,8.604e-05,2]
[421091524,1777017032170,-188.0,8.604e-05,3]
[421091525,1777017032180,-159.0,8.604e-05,3]
[421091526,1777017032191,-155.26190381,8.604e-05,21]
[421091527,1777017032200,-264.3,8.64e-05,2]
[421091528,1777017032210,-232.89285572,8.64e-05,21]
[421091529,1777017032220,-7692.55713725,8.651e-05,2]
[421091530,1777017032230,-151.0,8.74e-05,2]
[421091531,1777017032239,-151.0,8.789e-05,2]
[421091532,1777017032249,-165.4840058,8.792e-05,2]
[421091533,1777017032259,-23567.9110377,8.792e-05,2]
[421091534,1777017032268,-151.0,8.792e-05,2]
[421091535,1777017032278,-630.0,8.812e-05,5]